bitfinex/quotes_BTCUSD_20250814
["timestamp","ask_amount","ask_price","bid_price","bid_amount"]
[1755192808033,0.30681669,118080.0,118070.0,0.00531746]
[1755192808034,0.17137669,118080.0,118070.0,0.00531746]
[1755192808263,0.29929669,118080.0,118070.0,0.00531746]
[1755192809788,0.30139669,118080.0,118070.0,0.00014746]
[1755192810386,0.30440669,118080.0,118070.0,0.00014746]
[1755192811604,0.30139669,118080.0,118070.0,0.00014746]
[1755192813041,0.30139669,118080.0,118070.0,0.00227746]
[1755192813360,0.29925669,118080.0,118070.0,0.73453038]
[1755192813573,0.29925669,118080.0,118070.0,0.732413]
[1755192814126,0.30135669,118080.0,118070.0,0.00531746]
[1755192814394,0.30135669,118080.0,118070.0,0.17378587]
[1755192814603,0.30135669,118080.0,118070.0,0.17470849]
[1755192815768,0.002,118080.0,118070.0,0.732413]
[1755192815958,0.1374,118080.0,118070.0,0.81489743]
[1755192816588,0.1374,118080.0,118070.0,1.50182068]
[1755192817003,0.1364,118080.0,118070.0,1.50182068]
[1755192817202,0.1354,118080.0,118070.0,1.50182068]
[1755192819498,0.30477669,118080.0,118070.0,0.86163174]
[1755192819725,0.30691669,118080.0,118070.0,0.77890849]
[1755192819928,0.30691669,118080.0,118070.0,0.60647746]
[1755192820220,0.30691669,118080.0,118070.0,0.60434746]
[1755192820430,0.30691669,118080.0,118070.0,0.77373849]
[1755192821031,0.30691669,118080.0,118070.0,0.60434746]
[1755192821388,0.30691669,118080.0,118070.0,0.77373849]
[1755192822416,0.30691669,118080.0,118070.0,0.50953849]
[1755192822796,0.30477669,118080.0,118070.0,0.51454849]
[1755192822984,0.30477669,118080.0,118070.0,0.34515746]
[1755192823196,0.30691669,118080.0,118070.0,0.00014746]
[1755192823430,0.31003669,118080.0,118070.0,0.00014746]
[1755192824492,0.31103669,118080.0,118070.0,0.00014746]
[1755192827983,0.95146445,118080.0,118070.0,0.00014746]
[1755192829836,0.39375994,118080.0,118070.0,0.00014746]
[1755192830256,0.25523994,118080.0,118070.0,0.00014746]
[1755192830460,0.30569669,118080.0,118070.0,0.00515746]
[1755192830660,0.30783669,118080.0,118070.0,0.00215746]
[1755192830907,0.30783669,118080.0,118070.0,0.00014746]
[1755192832806,0.30783669,118080.0,118070.0,0.00215746]
[1755192833132,0.30783669,118080.0,118070.0,0.00515746]
[1755192833329,0.30783669,118080.0,118070.0,0.00215746]
[1755192833525,0.30783669,118080.0,118070.0,0.00014746]
[1755192833935,0.30783669,118080.0,118070.0,0.00515746]
[1755192834467,0.30783669,118080.0,118070.0,0.00215746]
[1755192834650,0.30783669,118080.0,118070.0,0.00014746]
[1755192837159,0.31095669,118080.0,118070.0,0.00014746]
[1755192838441,0.39367994,118080.0,118070.0,0.00014746]
[1755192838656,0.95138445,118080.0,118070.0,0.00014746]
[1755192839923,0.95238445,118080.0,118070.0,0.00014746]
[1755192840219,0.95538445,118080.0,118070.0,0.00014746]
[1755192840841,1.55817798,118080.0,118070.0,0.00014746]
[1755192841049,1.78637798,118080.0,118070.0,0.00014746]
[1755192842226,2.15137798,118080.0,118070.0,1e-08]
[1755192843146,2.14637798,118080.0,118070.0,1e-08]
[1755192843351,2.15137798,118080.0,118070.0,1e-08]
[1755192844554,2.15437798,118080.0,118070.0,1e-08]
[1755192846407,1.03896896,118080.0,118070.0,1e-08]
[1755192846638,1.59667347,118080.0,118070.0,1e-08]
[1755192846839,2.15437798,118080.0,118070.0,1e-08]
[1755192848312,2.19326559,118080.0,118070.0,1e-08]
[1755192849118,2.21869559,118080.0,118070.0,1e-08]
[1755192849589,2.19369559,118080.0,118070.0,1e-08]
[1755192849787,2.21869559,118080.0,118070.0,1e-08]
[1755192849990,2.19369559,118080.0,118070.0,1e-08]
[1755192850185,2.21869559,118080.0,118070.0,1e-08]
[1755192851824,2.16605559,118080.0,118070.0,1e-08]
[1755192851952,2.19105559,118080.0,118070.0,1e-08]
[1755192852362,2.16605559,118080.0,118070.0,1e-08]
[1755192852573,2.19105559,118080.0,118070.0,1e-08]
[1755192853515,2.16605559,118080.0,118070.0,1e-08]
[1755192854235,2.19105559,118080.0,118070.0,1e-08]
[1755192854824,2.16605559,118080.0,118070.0,1e-08]
[1755192855200,2.19105559,118080.0,118070.0,1e-08]
[1755192855985,2.16605559,118080.0,118070.0,1e-08]
[1755192856202,2.19105559,118080.0,118070.0,1e-08]
[1755192856993,2.16605559,118080.0,118070.0,1e-08]
[1755192857205,2.19105559,118080.0,118070.0,1e-08]
[1755192858606,2.16605559,118080.0,118070.0,1e-08]
[1755192858802,2.19105559,118080.0,118070.0,1e-08]
[1755192859222,2.16605559,118080.0,118070.0,1e-08]
[1755192859422,2.19105559,118080.0,118070.0,1e-08]
[1755192862311,2.29599888,118080.0,118070.0,1e-08]
[1755192862531,2.32482888,118080.0,118070.0,1e-08]
[1755192862750,2.28594127,118080.0,118070.0,1e-08]
[1755192864684,1.14162225,118080.0,118070.0,1e-08]
[1755192864922,2.25703127,118080.0,118070.0,1e-08]
[1755192865865,2.23203127,118080.0,118070.0,1e-08]
[1755192866093,2.14293127,118080.0,118070.0,1e-08]
[1755192866467,2.16481127,118080.0,118070.0,1e-08]
[1755192866867,2.16795127,118080.0,118070.0,1e-08]
[1755192868294,2.17588402,118080.0,118070.0,1e-08]
[1755192868470,2.17088402,118080.0,118070.0,1e-08]
[1755192868693,2.16788402,118080.0,118070.0,1e-08]
[1755192868877,2.17088402,118080.0,118070.0,1e-08]
[1755192869076,2.17388402,118080.0,118070.0,1e-08]
[1755192869352,2.17391097,118080.0,118070.0,1e-08]
[1755192870222,2.26301097,118080.0,118070.0,1e-08]
[1755192871104,0.16947716,118010.0,118000.0,0.0004]
[1755192871335,0.30467716,118010.0,118000.0,0.00287191]
[1755192872499,0.30567716,118010.0,118000.0,0.00787191]
[1755192872967,0.30567716,118010.0,118000.0,0.01087191]
[1755192873210,0.30567716,118010.0,118000.0,0.01383191]
[1755192873439,0.94610492,118010.0,118000.0,0.01383191]
[1755192873804,0.96196694,118010.0,118000.0,0.01383191]
[1755192874000,0.94610492,118010.0,118000.0,0.01383191]
[1755192874611,0.94610492,118010.0,118000.0,0.00883191]
[1755192874823,0.38740041,118010.0,118000.0,0.00883191]
[1755192875007,0.38740041,118010.0,118000.0,0.01183191]
[1755192875215,0.38740041,118010.0,118000.0,0.00883191]
[1755192875635,0.94510492,118010.0,118000.0,0.00883191]
[1755192875840,0.94510492,118010.0,118000.0,0.01083191]
[1755192877416,0.38740041,118010.0,118000.0,0.01083191]
[1755192877838,0.94510492,118010.0,118000.0,0.01083191]
[1755192878753,0.38740041,118010.0,118000.0,0.01083191]
[1755192878963,0.25220041,118010.0,118000.0,0.01083191]
[1755192879156,0.38736041,118010.0,118000.0,0.01083191]
[1755192879769,0.44140741,118010.0,118000.0,0.01083191]
[1755192880957,0.22352416,118010.0,118000.0,0.56853642]
[1755192881156,0.22352416,118010.0,118000.0,0.01083191]
[1755192881557,0.35868416,118010.0,118000.0,0.01083191]
[1755192881767,0.22352416,118010.0,118000.0,0.01083191]
[1755192881968,0.22352416,118010.0,118000.0,0.18032343]
[1755192882186,0.189207,118010.0,118000.0,0.73802794]
[1755192882395,0.189207,118010.0,118000.0,0.82051237]
[1755192882620,0.054047,118010.0,118000.0,0.82051237]
[1755192882832,0.189167,118010.0,118000.0,0.82051237]
[1755192883065,0.189167,118010.0,118000.0,0.81851237]
[1755192883271,0.35864416,118010.0,118000.0,0.81751237]
[1755192883714,0.190167,118010.0,118000.0,0.74002794]
[1755192883917,0.190167,118010.0,118000.0,0.18232343]
[1755192884118,0.190167,118010.0,118000.0,0.74002794]
[1755192885424,0.35964416,118010.0,118000.0,0.74002794]
[1755192885628,0.35964416,118010.0,118000.0,0.18232343]
[1755192885831,0.35964416,118010.0,118000.0,0.74002794]
[1755192886211,0.35964416,118010.0,118000.0,0.18232343]
[1755192886425,0.35964416,118010.0,118000.0,0.01283191]
[1755192887566,0.35964416,118010.0,118000.0,0.00789191]
[1755192887567,1.06969378,118010.0,118000.0,0.00789191]
[1755192887775,1.07267378,118010.0,118000.0,0.00789191]
[1755192888187,1.08847372,118010.0,118000.0,0.00789191]
[1755192888516,0.53076921,118010.0,118000.0,0.00789191]
[1755192888842,1.08847372,118010.0,118000.0,0.01005191]
[1755192889048,0.44432741,118010.0,118000.0,0.01005191]
[1755192889197,0.44236741,118010.0,118000.0,0.01299191]
[1755192890396,0.35964416,118010.0,118000.0,0.01299191]
[1755192890799,0.35960416,118010.0,118000.0,0.01299191]
[1755192891227,0.22452416,118010.0,118000.0,0.18460207]
[1755192891462,0.35960416,118010.0,118000.0,0.01299191]
[1755192891637,0.35960416,118010.0,118000.0,0.01511055]
[1755192891847,0.22452416,118010.0,118000.0,0.01299191]
[1755192892053,0.35960416,118010.0,118000.0,0.01511055]
[1755192892450,0.22452416,118010.0,118000.0,0.01511055]
[1755192892634,0.35960416,118010.0,118000.0,0.01511055]
[1755192893008,0.35960416,118010.0,118000.0,0.18460207]
[1755192893232,0.35960416,118010.0,118000.0,0.18248343]
[1755192893625,0.35960416,118010.0,118000.0,0.01299191]
[1755192893840,0.35960416,118010.0,118000.0,0.01511055]
[1755192896009,1.00497192,118010.0,118000.0,0.00789191]
[1755192898129,0.44726741,118010.0,118000.0,0.00789191]
[1755192898441,0.88572319,118010.0,118000.0,0.00789191]
[1755192898640,1.02076319,118010.0,118000.0,0.00789191]
[1755192899239,1.00493192,118010.0,118000.0,0.00789191]
[1755192899443,1.02076944,118010.0,118000.0,0.00789191]
[1755192900795,0.46306493,118010.0,118000.0,0.12789191]
[1755192901179,0.46306493,118010.0,118000.0,0.13005191]
[1755192901802,0.46008493,118010.0,118000.0,0.13005191]
[1755192902329,0.24036168,118010.0,118000.0,0.13299191]
[1755192902617,0.38034168,118010.0,118000.0,0.12789191]
[1755192903074,0.38034168,118010.0,118000.0,0.13005191]
[1755192904706,0.38034168,118010.0,118000.0,0.12789191]
[1755192905124,1.02076944,118010.0,118000.0,0.12789191]
[1755192906439,0.46306493,118010.0,118000.0,0.12789191]
[1755192907008,0.46309559,118010.0,118000.0,0.12789191]
[1755192909425,1.0208001,118010.0,118000.0,0.12789191]
[1755192913066,0.46309559,118010.0,118000.0,0.12789191]
[1755192915031,1.0208001,118010.0,118000.0,0.12789191]
[1755192915230,0.46309559,118010.0,118000.0,0.12789191]
[1755192915468,1.0208001,118010.0,118000.0,0.12789191]
[1755192916220,0.46309559,118010.0,118000.0,0.12789191]
[1755192916443,1.0208001,118010.0,118000.0,0.12789191]
[1755192917121,1.00493192,118010.0,118000.0,0.12789191]
[1755192918749,1.02080781,118010.0,118000.0,0.12789191]
[1755192918922,1.02080781,118010.0,118000.0,0.12589191]
[1755192919123,1.00393192,118010.0,118000.0,0.12089191]
[1755192919345,1.00393192,118010.0,118000.0,0.12189191]
[1755192919477,1.00393192,118010.0,118000.0,0.12489191]
[1755192919917,1.01980777,118010.0,118000.0,0.12489191]
[1755192920316,1.6212313,118010.0,118000.0,0.12489191]
[1755192920519,0.18694054,118000.0,117990.0,0.0004]
[1755192920725,0.18694054,118000.0,117990.0,0.00044906]
[1755192920726,1.5410192,118000.0,117990.0,0.00044906]
[1755192921298,1.5410192,118000.0,117980.0,0.0004]
[1755192921299,0.16950589,117990.0,117980.0,0.0004]
[1755192921503,0.96745267,117990.0,117980.0,0.00054751]
[1755192921703,0.98332906,117990.0,117980.0,0.00054751]
[1755192922154,0.96745267,117990.0,117980.0,0.00054751]
[1755192922358,0.96645267,117990.0,117980.0,0.00054751]
[1755192922981,0.98231193,117990.0,117980.0,1e-08]
[1755192923154,0.98231193,117990.0,117980.0,0.00100001]
[1755192923818,0.98231193,117990.0,117980.0,1e-08]
[1755192924238,0.98431193,117990.0,117980.0,1e-08]
[1755192925309,1.01131193,117990.0,117980.0,1e-08]
[1755192925484,1.03758193,117990.0,117980.0,1e-08]
[1755192926044,1.02172267,117990.0,117980.0,1e-08]
[1755192926595,1.02511667,117990.0,117980.0,1e-08]
[1755192926752,1.04095266,117990.0,117980.0,1e-08]
[1755192927180,1.39011667,117990.0,117980.0,1e-08]
[1755192927394,1.40594933,117990.0,117980.0,1e-08]
[1755192927987,1.60594933,117990.0,117980.0,1e-08]
[1755192928430,1.63001264,117990.0,117980.0,1e-08]
[1755192928834,1.62801264,117990.0,117980.0,1e-08]
[1755192929041,1.60694933,117990.0,117980.0,1e-08]
[1755192929262,1.60494933,117990.0,117980.0,1e-08]
[1755192930056,1.60894933,117990.0,117980.0,1e-08]
[1755192930371,1.05124482,117990.0,117980.0,1e-08]
[1755192930908,1.05123189,117990.0,117980.0,1e-08]
[1755192931108,0.16957775,117940.0,117930.0,0.0032]
[1755192931224,0.389231,117940.0,117930.0,0.00213]
[1755192931427,0.94693551,117940.0,117930.0,0.0022776]
[1755192931845,0.94693551,117940.0,117930.0,0.0054776]
[1755192932077,0.387141,117940.0,117930.0,0.0054776]
[1755192932576,0.387141,117940.0,117930.0,0.0074776]
[1755192932752,0.253301,117940.0,117930.0,0.0094776]
[1755192932957,0.388141,117940.0,117930.0,0.0074776]
[1755192933377,0.94584551,117940.0,117930.0,0.0084776]
[1755192933577,0.388141,117940.0,117930.0,0.0084776]
[1755192936513,0.253301,117940.0,117930.0,0.17806973]
[1755192936721,0.30541775,117940.0,117930.0,0.73577424]
[1755192936948,0.13584,117940.0,117930.0,0.73577424]
[1755192937377,0.13584,117940.0,117930.0,0.26055416]
[1755192937571,0.30541775,117940.0,117930.0,0.73577424]
[1755192937724,0.30541775,117940.0,117930.0,0.73477424]
[1755192937928,0.30541775,117940.0,117930.0,0.17706973]
[1755192938124,0.30541775,117940.0,117930.0,0.73477424]
[1755192938329,0.30441775,117940.0,117930.0,0.17706973]
[1755192938529,0.30541775,117940.0,117930.0,0.18006973]
[1755192938763,0.30541775,117940.0,117930.0,0.17806973]
[1755192938964,0.30441775,117940.0,117930.0,0.0084776]
[1755192939197,0.30541775,117940.0,117930.0,0.0124776]
[1755192940184,0.30541775,117940.0,117930.0,0.18206973]
[1755192940724,0.30541775,117940.0,117930.0,0.0124776]
[1755192941473,0.30541775,117940.0,117930.0,0.18206973]
[1755192941624,0.30541775,117940.0,117930.0,0.0124776]
[1755192943320,0.30213775,117940.0,117930.0,0.0124776]
[1755192945369,0.30213775,117940.0,117930.0,0.18206973]
[1755192945898,0.30213775,117940.0,117930.0,0.0124776]
[1755192946818,0.30213775,117940.0,117930.0,0.18206973]
[1755192947013,0.30213775,117940.0,117930.0,0.0124776]
[1755192947429,0.30213775,117940.0,117930.0,0.18206973]
[1755192948040,0.13576,117940.0,117930.0,0.73977424]
[1755192948254,0.001,117940.0,117930.0,0.76725929]
[1755192948429,0.001,117940.0,117930.0,1.10725929]
[1755192948637,0.13576,117940.0,117930.0,1.21684254]
[1755192948832,0.13576,117940.0,117930.0,1.24228754]
[1755192949645,0.13576,117940.0,117930.0,1.23928754]
[1755192949846,0.13476,117940.0,117930.0,1.23528754]
[1755192950046,0.1780271,117960.0,117950.0,0.16956337]
[1755192950414,0.3127871,117960.0,117950.0,0.17474337]
[1755192951192,0.13476,117960.0,117950.0,0.17474337]
[1755192951396,0.16953543,117970.0,117960.0,0.16954899]
[1755192951560,0.30425543,117970.0,117960.0,0.17472899]
[1755192951778,0.30425543,117970.0,117960.0,0.12068199]
[1755192952540,0.30425543,117970.0,117960.0,0.00518]
[1755192953276,0.30625543,117970.0,117960.0,0.00518]
[1755192953829,0.30837543,117970.0,117960.0,0.00518]
[1755192954241,0.31237543,117970.0,117960.0,0.17472899]
[1755192954456,0.30637543,117970.0,117960.0,0.17472899]
[1755192954822,0.30725543,117970.0,117960.0,0.17472899]
[1755192955020,0.17253543,117970.0,117960.0,0.17472899]
[1755192955334,0.30725543,117970.0,117960.0,0.17472899]
[1755192956297,0.30425543,117970.0,117960.0,0.17472899]
[1755192956496,0.30425543,117970.0,117960.0,0.17572899]
[1755192959345,0.30637543,117970.0,117960.0,0.00618]
[1755192959569,0.94988319,117970.0,117960.0,0.001]
[1755192960403,0.25745868,117970.0,117960.0,0.001]
[1755192960602,0.30417543,117970.0,117960.0,0.17572899]
[1755192960836,0.16953543,117970.0,117960.0,0.17572899]
[1755192961044,0.30417543,117970.0,117960.0,0.17572899]
[1755192961485,0.38136904,117980.0,117970.0,0.16953462]
[1755192961735,0.20336,117980.0,117970.0,0.73241913]
[1755192961948,0.16949152,118000.0,117990.0,0.16950589]
[1755192962170,0.30413152,118000.0,117990.0,0.17152589]
[1755192962374,0.16950589,117990.0,117980.0,0.7303719]
[1755192962584,0.17162589,117990.0,117980.0,0.00202]
[1755192962813,0.17470589,117990.0,117980.0,0.0001476]
[1755192963027,0.325091,117990.0,117980.0,0.0001476]
[1755192963554,0.326091,117990.0,117980.0,0.0001476]
[1755192963765,0.98047629,117990.0,117980.0,0.0001476]
[1755192964633,1.00712629,117990.0,117980.0,0.0001476]
[1755192966027,1.24378869,117990.0,117980.0,0.0001476]
[1755192966758,1.58378869,117990.0,117980.0,0.0001476]
[1755192966965,1.58278869,117990.0,117980.0,0.0001476]
[1755192967188,1.58278869,117990.0,117980.0,0.0011476]
[1755192967189,1.58778869,117990.0,117980.0,0.0011476]
[1755192967945,1.58478869,117990.0,117980.0,0.0001476]
[1755192968395,1.58779129,117990.0,117980.0,0.0011476]
[1755192968594,1.59079129,117990.0,117980.0,0.0011476]
[1755192969102,1.52312943,117990.0,117980.0,0.0011476]
[1755192969420,1.50727345,117990.0,117980.0,0.0011476]
[1755192970212,1.48062345,117990.0,117980.0,0.0011476]
[1755192971948,1.50607145,117990.0,117980.0,0.0011476]
[1755192974540,1.64063145,117990.0,117980.0,0.0011476]
[1755192976196,1.69374145,117990.0,117980.0,0.0011476]
[1755192976491,0.00847673,117970.0,117940.0,0.00323]
[1755192976706,0.16956337,117950.0,117940.0,0.00337763]
[1755192976947,0.25432662,117950.0,117940.0,0.00219763]
[1755192977981,0.25432662,117950.0,117940.0,0.00319763]
[1755192978423,0.25742662,117950.0,117940.0,0.00214763]
[1755192978805,0.25742662,117950.0,117940.0,0.00114763]
[1755192978990,0.91181191,117950.0,117940.0,0.00114763]
[1755192979378,0.92926093,117950.0,117930.0,0.0003]
[1755192979589,1.40175531,117940.0,117930.0,1e-08]
[1755192979790,1.40379531,117940.0,117930.0,1e-08]
[1755192979997,1.4132997,117940.0,117930.0,1e-08]
[1755192980414,1.4122997,117940.0,117930.0,1e-08]
[1755192981018,1.4122997,117940.0,117930.0,0.00100001]
[1755192981211,1.4172997,117940.0,117930.0,1e-08]
[1755192981460,1.4172997,117940.0,117900.0,0.00363]
[1755192981689,0.82400618,117910.0,117900.0,0.0004]
[1755192981903,0.39200414,117910.0,117900.0,1e-08]
[1755192982110,1.04638943,117910.0,117900.0,1e-08]
[1755192982959,0.40945316,117910.0,117900.0,0.00014767]
[1755192983382,1.06383845,117910.0,117900.0,0.00114767]
[1755192983600,1.40383845,117910.0,117900.0,1e-08]
[1755192983809,0.1870843,117900.0,117890.0,1.35706923]
[1755192984008,0.61494755,117900.0,117890.0,1.35706923]
[1755192984377,1.26933284,117900.0,117890.0,1.35706923]
[1755192985219,0.61494755,117900.0,117890.0,1.35706923]
[1755192985419,0.74688755,117900.0,117890.0,1.35911923]
[1755192985879,0.59235853,117900.0,117890.0,1.36234923]
[1755192986083,0.59335853,117900.0,117890.0,1.36234923]
[1755192986230,0.59735853,117900.0,117890.0,1.36334923]
[1755192986435,0.73243853,117900.0,117890.0,1.36334923]
[1755192986984,0.73243853,117900.0,117890.0,1.36234923]
[1755192987193,0.72843853,117900.0,117890.0,1.36234923]
[1755192987404,0.73143853,117900.0,117890.0,1.36334923]
[1755192987604,0.73143853,117900.0,117890.0,1.36098799]
[1755192987809,0.73043853,117900.0,117890.0,1.36098799]
[1755192988011,0.75590153,117900.0,117890.0,1.36098799]
[1755192988213,1.41542682,117900.0,117890.0,1.35570799]
[1755192988834,0.75794153,117900.0,117890.0,1.35775799]
[1755192989038,0.75590153,117900.0,117890.0,1.36098799]
[1755192989453,0.76104153,117900.0,117890.0,1.35570799]
[1755192990844,0.76104153,117900.0,117890.0,1.35775799]
[1755192991044,0.75794153,117900.0,117890.0,1.35775799]
[1755192991889,0.75774153,117900.0,117890.0,1.35775799]
[1755192992128,0.75570153,117900.0,117890.0,1.36098799]
[1755192993102,0.75774153,117900.0,117890.0,1.35775799]
[1755192993664,0.75570153,117900.0,117890.0,1.36098799]
[1755192994791,0.62082153,117900.0,117890.0,1.36098799]
[1755192994991,0.28082153,117900.0,117890.0,1.36098799]
[1755192995195,0.41566153,117900.0,117890.0,1.36098799]
[1755192995393,0.39019853,117900.0,117890.0,1.36098799]
[1755192995971,0.39019853,117900.0,117890.0,1.53063766]
[1755192996172,0.39019853,117900.0,117890.0,1.36098799]
[1755192996376,0.39019853,117900.0,117890.0,1.53063766]
[1755192996590,0.003,117900.0,117890.0,1.53063766]
[1755192996800,0.003,117900.0,117890.0,2.26750738]
[1755192997005,0.13788,117900.0,117890.0,2.26750738]
[1755192997228,0.13788,117900.0,117890.0,1.61312209]
[1755192997391,0.13788,117900.0,117890.0,1.53063766]
[1755192997606,0.003,117900.0,117890.0,1.53063766]
[1755192997928,0.16962152,117910.0,117890.0,1.52963766]
[1755192998170,0.30547528,117900.0,117890.0,1.52740766]
[1755192998375,0.13584,117900.0,117890.0,1.52840766]
[1755192998724,0.13584,117900.0,117890.0,1.53155766]
[1755192999051,0.13484,117900.0,117890.0,1.52955766]
[1755193000218,0.13476,117900.0,117890.0,1.61304209]
[1755193000422,0.13476,117900.0,117890.0,1.53055766]
[1755193000547,0.13476,117900.0,117890.0,1.52955766]
[1755193000982,0.13576,117900.0,117890.0,1.53155766]
[1755193001536,0.30539528,117900.0,117890.0,1.53155766]
[1755193001951,0.13576,117900.0,117890.0,1.53155766]
[1755193002147,0.13576,117900.0,117890.0,1.61304209]
[1755193002482,0.001,117900.0,117890.0,1.61404209]
[1755193002659,0.13576,117900.0,117890.0,2.26842738]
[1755193002867,0.13576,117900.0,117890.0,2.60842738]
[1755193002868,0.001,117900.0,117890.0,2.60842738]
[1755193003064,0.13572,117900.0,117890.0,2.69115063]
[1755193005769,0.13572,117900.0,117890.0,2.03676534]
[1755193005942,0.13572,117900.0,117890.0,2.69115063]
[1755193006750,0.13572,117900.0,117890.0,2.03676534]
[1755193007570,0.13572,117900.0,117890.0,1.95404209]
[1755193011365,0.13316,117900.0,117890.0,1.95404209]
[1755193013134,0.13316,117900.0,117890.0,2.60842738]
[1755193013452,0.001,117910.0,117900.0,0.16963528]
[1755193013653,0.1356,117910.0,117900.0,0.25725971]
[1755193014443,0.1346,117910.0,117900.0,0.25725971]
[1755193015289,0.1356,117910.0,117900.0,0.25825971]
[1755193016324,0.30735089,117910.0,117900.0,0.25510971]
[1755193016723,0.13773,117910.0,117900.0,0.25510971]
[1755193016923,0.1356,117910.0,117900.0,0.25825971]
[1755193017179,0.001,117910.0,117900.0,0.25825971]
[1755193017312,0.1356,117910.0,117900.0,1.252645]
[1755193018519,0.1346,117910.0,117900.0,1.251645]
[1755193018857,0.1356,117910.0,117900.0,1.252645]
[1755193019621,0.1356,117910.0,117900.0,0.59825971]
[1755193020451,0.001,117910.0,117900.0,1.33636825]
[1755193020646,0.001,117910.0,117900.0,1.73516825]
[1755193020918,0.001,117910.0,117900.0,2.16848256]
[1755193021048,0.13464,117930.0,117920.0,1.1639918]
[1755193021252,0.26158479,117960.0,117950.0,0.16956337]
[1755193021495,0.48111804,117960.0,117950.0,0.17155337]
[1755193021693,0.46541042,117960.0,117950.0,0.17155337]
[1755193021893,0.46849042,117960.0,117940.0,0.17271489]
[1755193022068,0.46849042,117960.0,117940.0,0.16956489]
[1755193022495,0.16856337,117950.0,117940.0,0.16956489]
[1755193022694,0.17069337,117950.0,117940.0,0.16956489]
[1755193022976,0.17069337,117950.0,117940.0,0.20663117]
[1755193023674,0.17069337,117950.0,117940.0,0.21620608]
[1755193024295,0.17377337,117950.0,117940.0,0.04764119]
[1755193024471,0.17477337,117950.0,117940.0,0.04465119]
[1755193024682,0.17169337,117950.0,117940.0,0.21621894]
[1755193024892,0.17469337,117950.0,117940.0,0.21721894]
[1755193025096,0.17469337,117950.0,117940.0,0.04764119]
[1755193025307,0.17469337,117950.0,117940.0,0.04976091]
[1755193025532,0.17777337,117950.0,117940.0,0.04777091]
[1755193025948,0.17777337,117950.0,117940.0,0.001]
[1755193039249,0.17777337,117950.0,117940.0,0.17057775]
[1755193040357,0.00921,117950.0,117940.0,0.17057775]
[1755193040783,0.00613,117950.0,117940.0,0.17269775]
[1755193040927,0.17569337,117950.0,117940.0,0.17269775]
[1755193041377,0.00613,117950.0,117940.0,0.17269775]
[1755193041812,0.00613,117950.0,117940.0,0.20818634]
[1755193042712,0.004,117950.0,117940.0,0.77013533]
[1755193043149,0.13852,117950.0,117940.0,0.77013533]
[1755193043959,0.13752,117950.0,117940.0,0.77013533]
[1755193044158,0.13452,117950.0,117940.0,0.76913533]
[1755193044355,0.13452,117950.0,117940.0,0.77013533]
[1755193044676,0.13552,117950.0,117940.0,0.77013533]
[1755193046345,0.13552,117950.0,117940.0,0.21142634]
[1755193046551,0.13552,117950.0,117940.0,0.77013533]
[1755193046763,0.13552,117950.0,117940.0,0.77113533]
[1755193048121,0.13552,117950.0,117940.0,0.21242634]
[1755193048259,0.13753,117950.0,117940.0,0.20918634]
[1755193048895,0.13753,117950.0,117940.0,0.21242634]
[1755193049779,0.13753,117950.0,117940.0,0.77113533]
[1755193052398,0.13552,117950.0,117940.0,0.77113533]
[1755193053232,0.13552,117950.0,117940.0,0.21242634]
[1755193053495,0.13552,117950.0,117940.0,0.77113533]
[1755193058896,0.13552,117950.0,117940.0,0.21242634]
[1755193059945,0.37798523,117950.0,117940.0,0.17157775]
[1755193060396,0.37798523,117950.0,117940.0,0.002]
[1755193060522,0.93669422,117950.0,117940.0,0.001]
[1755193060733,0.16957775,117940.0,117930.0,0.78314812]
[1755193061111,0.17173775,117940.0,117930.0,0.78522812]
[1755193061254,0.17173775,117940.0,117930.0,0.86771255]
[1755193061464,0.17481775,117940.0,117930.0,0.86563255]
[1755193061669,0.17481775,117940.0,117930.0,0.86563262]
[1755193061877,0.17481775,117940.0,117930.0,0.86771262]
[1755193062219,0.17381775,117940.0,117930.0,0.86871262]
[1755193062358,0.17481775,117940.0,117930.0,0.86871262]
[1755193063000,0.17481775,117940.0,117930.0,0.86971262]
[1755193063644,0.17173775,117940.0,117930.0,0.87274262]
[1755193064933,0.17173775,117940.0,117930.0,0.60854262]
[1755193065653,0.17173775,117940.0,117930.0,0.60551262]
[1755193067654,0.17173775,117940.0,117930.0,0.43592049]
[1755193067849,0.17481775,117940.0,117930.0,0.43592049]
[1755193067992,0.17481775,117940.0,117930.0,0.01135606]
[1755193068892,0.17481775,117940.0,117930.0,0.01035606]
[1755193070263,0.17381775,117940.0,117930.0,0.00935606]
[1755193070500,0.17481775,117940.0,117930.0,0.01035606]
[1755193070705,0.17481775,117940.0,117930.0,0.001]
[1755193073620,0.17481775,117940.0,117930.0,0.01005039]
[1755193073798,0.17481775,117940.0,117930.0,0.03741556]
[1755193075912,0.17481775,117940.0,117930.0,0.03949556]
[1755193076141,0.17481775,117940.0,117930.0,0.01213039]
[1755193076382,0.17481775,117940.0,117930.0,0.01005039]
[1755193078461,0.17481775,117940.0,117930.0,0.17964252]
[1755193078680,0.17481775,117940.0,117930.0,0.01213039]
[1755193080351,0.16821775,117940.0,117930.0,0.01005039]
[1755193080559,0.16821775,117940.0,117930.0,0.03741556]
[1755193080987,0.16821775,117940.0,117930.0,0.03949556]
[1755193081400,0.16513775,117940.0,117930.0,0.20908769]
[1755193082099,0.16821775,117940.0,117930.0,0.03949556]
[1755193082565,0.16821775,117940.0,117930.0,0.20908769]
[1755193082802,0.29733775,117940.0,117930.0,0.21211769]
[1755193083034,0.13536,117940.0,117930.0,0.77082668]
[1755193085556,0.001,117940.0,117930.0,1.19354993]
[1755193085775,0.001,117940.0,117930.0,0.63484094]
[1755193085989,0.001,117940.0,117930.0,1.19354993]
[1755193087246,0.001,117940.0,117930.0,0.63484094]
[1755193087451,0.001,117940.0,117930.0,1.19354993]
[1755193087656,0.001,117940.0,117930.0,1.23563457]
[1755193087878,0.001,117940.0,117930.0,1.26107757]
[1755193092325,0.13446738,117960.0,117950.0,0.50956337]
[1755193092495,0.13446738,117960.0,117950.0,1.22400843]
[1755193093520,0.00014738,117960.0,117950.0,1.22400843]
[1755193094150,0.00226738,117960.0,117950.0,1.22400843]
[1755193094769,0.00226738,117960.0,117950.0,1.22094843]
[1755193094982,0.00739738,117960.0,117950.0,0.66323944]
[1755193095961,0.00739738,117960.0,117950.0,0.51056337]
[1755193096582,0.14167738,117960.0,117950.0,0.51056337]
[1755193096996,0.31122637,117960.0,117950.0,0.51056337]
[1755193099711,0.86993536,117960.0,117950.0,0.001]
[1755193100081,0.31122637,117960.0,117950.0,0.001]
[1755193100233,0.86993536,117960.0,117950.0,0.001]
[1755193101098,0.1695731,117950.0,117930.0,0.18712212]
[1755193101303,0.1685731,117950.0,117940.0,0.16957775]
[1755193101507,0.3081031,117950.0,117940.0,0.16957775]
[1755193101841,0.3081031,117950.0,117930.0,0.26960655]
[1755193102279,0.16957775,117940.0,117930.0,0.60960655]